fUSD/lending_fUSD_20240725
["ID","MTS","AMOUNT","RATE_DAILY","PERIOD"]
[333199778,1721939446810,-500.0,0.00010958,2]
[333199779,1721939446820,-500.0,0.00010958,2]
[333199780,1721939446829,-500.0,0.00010958,2]
[333199781,1721939446839,-500.0,0.00010998,2]
[333199782,1721939446849,-50000.0,0.00010999,2]
[333199783,1721939446858,-500.0,0.00010999,2]
[333199784,1721939446868,-1239296.6854969,0.00011,2]
[333199785,1721939446884,-9992.98876922,0.00011,2]
[333199786,1721939446895,-1256.4,0.00011,2]
[333199787,1721939446907,-396.11489439,0.00011,2]
[333199788,1721939446920,-268.77602007,0.00011,2]
[333199789,1721939446932,-2140.88100469,0.00011,2]
[333199790,1721939446944,-598.32088581,0.00011,2]
[333199791,1721939446956,-681.83583395,0.00011,2]
[333199792,1721939446967,-3761.1462,0.00011,2]
[333199793,1721939447512,-500.0,0.00010999,2]
[333199794,1721939447522,-38675.25499493,0.00011,2]
[333199795,1721939447534,-8005.5,0.00011,2]
[333199796,1721939447545,-20515.28908705,0.00011,2]
[333199797,1721939447557,-1750.91473499,0.00011,2]
[333199798,1721939447568,-6562.2557,0.00011,2]
[333199799,1721939447584,-791.68781801,0.00011,2]
[333199800,1721939447595,-451.88977681,0.00011,2]
[333199801,1721939447610,-3041.95,0.00011,2]
[333199802,1721939447621,-340.86128967,0.00011,2]
[333199803,1721939447632,-14696.91747197,0.00011,2]
[333199804,1721939447643,-492.798201,0.00011,2]
[333199805,1721939447655,-405.65652858,0.00011,2]
[333199806,1721939447829,-629.27928532,0.00010838,2]
[333199807,1721939447841,-429.75631163,0.00010838,2]
[333199808,1721939447852,-408.48752001,0.00010838,2]
[333199809,1721939447864,-281.0,0.00010838,2]
[333199810,1721939447876,-508.08688304,0.00010838,2]
[333199811,1721939447885,-757.09413167,0.00010838,2]
[333199812,1721939447899,-1499.51586833,0.00010838,2]
[333199813,1721939447910,-2256.61,0.00010838,2]
[333199814,1721939447920,-2256.61,0.00010838,2]
[333199815,1721939447929,-2256.61,0.00010838,2]
[333199816,1721939447939,-1056.30759124,0.00010838,2]
[333199817,1721939447952,-719.32993612,0.00010838,2]
[333199818,1721939447963,-480.97247264,0.00010838,2]
[333199819,1721939447972,-1279.18192305,0.00010838,2]
[333199820,1721939447984,-977.42807695,0.00010838,2]
[333199821,1721939447994,-2256.61,0.00010838,2]
[333199822,1721939448004,-2256.61,0.00010838,2]
[333199823,1721939448014,-592.79405936,0.00010838,2]
[333199824,1721939448026,-406.66821803,0.00010838,2]
[333199825,1721939448038,-1257.14772261,0.00010838,2]
[333199826,1721939448048,-445.0,0.00010848,2]
[333199827,1721939448057,-494.77195929,0.00010958,2]
[333199828,1721939448069,-5.22804071,0.00010958,2]
[333199829,1721939448079,-445.36662012,0.00010958,2]
[333199830,1721939448091,-54.63337988,0.00010958,2]
[333199831,1721939448102,-500.0,0.00010958,2]
[333199832,1721939448112,-500.0,0.00010999,2]
[333199833,1721939448123,-129.50658012,0.00010999,2]
[333199834,1721939448135,-334.39341988,0.00010999,2]
[333199835,1721939448146,-3065.00283565,0.00011,2]
[333199836,1721939448160,-1532.24105838,0.00011,2]
[333199837,1721939448173,-1742.71683065,0.00011,2]
[333199838,1721939448186,-286.20088829,0.00011,2]
[333199839,1721939448198,-7856.27370497,0.00011,2]
[333199840,1721939448209,-71135.08359221,0.00011,2]
[333199841,1721939448222,-439.48896357,0.00011,2]
[333199842,1721939448235,-835.97661551,0.00011,2]
[333199843,1721939448248,-405900.18643374,0.00011,2]
[333199844,1721939448261,-234869.7369746,0.00011,2]
[333199845,1721939448275,-3677.88543734,0.00011,2]
[333199846,1721939448290,-519034.17362722,0.00011,2]
[333199847,1721939448303,-304.97,0.00011,2]
[333199848,1721939448318,-882.1746128,0.00011,2]
[333199849,1721939448331,-240559.01434942,0.00011,2]
[333199850,1721939448342,-622.22852932,0.00011,2]
[333199851,1721939448355,-12006.86003465,0.00011,2]
[333199852,1721939448368,-29607.1317072,0.00011,2]
[333199872,1721940631922,-1159.3,8.219e-05,2]
[333199873,1721940631932,-300.0,9.821e-05,2]
[333199874,1721940631942,-467.63036806,9.822e-05,2]
[333199875,1721940631953,-359.16532702,9.822e-05,2]
[333199876,1721940631980,-716.091541,9.822e-05,2]
[333199877,1721940631991,-2561.59512,9.822e-05,2]
[333199878,1721940632038,-19795.51764392,9.822e-05,2]
[333199879,1721940632048,-1218.23,9.843e-05,2]
[333199880,1721940632058,-250.0,9.844e-05,2]
[333199881,1721940632068,-3363.1871,9.942e-05,2]
[333199882,1721940632077,-150.0,0.00010027,2]
[333199883,1721940632087,-1000.0,0.00010042,2]
[333199884,1721940632096,-1159.3,0.00010468,2]
[333199885,1721940632106,-150.0,0.00010733,2]
[333199886,1721940632116,-150.0,0.00010736,2]
[333199887,1721940632126,-150.0,0.00010736,2]
[333199888,1721940632139,-150.0,0.00010737,2]
[333199889,1721940632148,-150.0,0.00010743,2]
[333199890,1721940632158,-150.0,0.0001076,2]
[333199891,1721940632167,-150.0,0.0001076,2]
[333199892,1721940632176,-150.0,0.00010763,2]
[333199893,1721940632186,-150.0,0.00010767,2]
[333199894,1721940632195,-150.0,0.00010767,2]
[333199895,1721940632205,-150.0,0.00010767,2]
[333199896,1721940632214,-150.0,0.00010767,2]
[333199897,1721940632223,-150.0,0.00010769,2]
[333199898,1721940632232,-150.0,0.00010772,2]
[333199899,1721940632242,-150.0,0.00010775,2]
[333199900,1721940632251,-150.0,0.00010776,2]
[333199901,1721940632261,-1016.01359428,0.0001078,2]
[333199902,1721940632270,-150.0,0.0001078,2]
[333199903,1721940632279,-150.0,0.00010787,2]
[333199904,1721940632289,-150.0,0.00010791,2]
[333199905,1721940632298,-150.0,0.00010793,2]
[333199906,1721940632308,-18334.6477,0.00010799,2]
[333199907,1721940632318,-420.0,0.00010803,2]
[333199908,1721940632328,-150.0,0.00010808,2]
[333199909,1721940632337,-150.0,0.00010811,2]
[333199910,1721940632347,-150.0,0.00010816,2]
[333199911,1721940632357,-150.0,0.00010816,2]
[333199912,1721940632366,-150.0,0.00010824,2]
[333199913,1721940632375,-150.0,0.00010825,2]
[333199914,1721940632385,-150.0,0.00010828,2]
[333199915,1721940632395,-150.0,0.0001083,2]
[333199916,1721940632404,-150.0,0.0001083,2]
[333199917,1721940632413,-150.0,0.00010836,2]
[333199918,1721940632423,-150.0,0.00010845,2]
[333199919,1721940632432,-150.0,0.00010848,2]
[333199920,1721940632442,-810.0,0.0001085,2]
[333199921,1721940632452,-621.0,0.0001085,2]
[333199922,1721940632461,-150.0,0.0001085,2]
[333199923,1721940632471,-450.0,0.0001085,2]
[333199924,1721940632480,-150.0,0.0001085,2]
[333199925,1721940632489,-150.0,0.0001085,2]
[333199926,1721940632498,-150.0,0.00010857,2]
[333199927,1721940632508,-150.0,0.0001086,2]
[333199928,1721940632517,-150.0,0.00010862,2]
[333199929,1721940632527,-150.0,0.00010864,2]
[333199930,1721940632536,-150.0,0.00010866,2]
[333199931,1721940632546,-150.0,0.00010875,2]
[333199932,1721940632555,-150.0,0.00010875,2]
[333199933,1721940632565,-150.0,0.00010878,2]
[333199934,1721940632574,-150.0,0.00010888,2]
[333199935,1721940632583,-150.0,0.00010888,2]
[333199936,1721940632592,-150.0,0.00010888,2]
[333199937,1721940632602,-150.0,0.00010896,2]
[333199938,1721940632611,-150.0,0.00010896,2]
[333199939,1721940632621,-150.0,0.00010896,2]
[333199940,1721940632633,-150.0,0.00010897,2]
[333199941,1721940632643,-153.63557756,0.00010898,2]
[333199942,1721940632653,-1108.67064057,0.00010899,2]
[333199943,1721940632662,-1108.67064051,0.00010899,2]
[333199944,1721940632672,-1108.67064051,0.00010899,2]
[333199945,1721940632683,-1108.67064051,0.00010899,2]
[333199946,1721940632692,-1108.67064051,0.00010899,2]
[333199947,1721940632702,-1108.67064051,0.00010899,2]
[333199948,1721940632713,-1108.67064051,0.00010899,2]
[333199949,1721940632722,-1041.48717573,0.00010899,2]
[333199950,1721940632739,-67.18346478,0.00010899,2]
[333199951,1721940632748,-1108.67064051,0.00010899,2]
[333199952,1721940632758,-851.98135449,0.000109,2]
[333199953,1721940632769,-530.0,0.000109,2]
[333199954,1721940632781,-1684.86444504,0.000109,2]
[333199955,1721940632793,-1180.85005427,0.000109,2]
[333199956,1721940632805,-4051.46930057,0.000109,2]
[333199957,1721940632819,-1280.56006859,0.000109,2]
[333199958,1721940632831,-598.41057704,0.000109,2]
[333199959,1721940632841,-263.3604,0.000109,2]
[333199960,1721940632852,-7500.0,0.000109,2]
[333199961,1721940632863,-163.8951949,0.000109,2]
[333199962,1721940632872,-1108.67064051,0.000109,2]
[333199964,1721940632882,-107.10454755,0.00010902,2]
[333199967,1721940632898,-42.89545245,0.00010902,2]
[333199969,1721940632907,-150.0,0.00010902,2]
[333199971,1721940632916,-150.0,0.00010904,2]
[333199973,1721940632926,-217.02,0.00010904,2]
[333199975,1721940632935,-150.0,0.00010905,2]
[333199977,1721940632944,-150.0,0.00010906,2]
[333199978,1721940632954,-150.0,0.00010907,2]
[333199979,1721940632963,-150.0,0.00010909,2]
[333199980,1721940632972,-150.0,0.00010911,2]
[333199981,1721940632981,-500.0,0.00010912,2]
[333199982,1721940632991,-150.0,0.00010913,2]
[333199983,1721940633000,-121.17130289,0.00010913,2]
[333200001,1721940637854,-150.0,0.0001085,2]
[333200002,1721940637863,-150.0,0.0001085,2]
[333200003,1721940637872,-28.82869711,0.00010913,2]
[333200004,1721940637881,-150.0,0.00010915,2]
[333200005,1721940637890,-150.0,0.00010915,2]
[333200006,1721940637899,-150.0,0.00010918,2]
[333200007,1721940637908,-150.0,0.00010921,2]
[333200008,1721940637916,-36.65024218,0.00010923,2]
[333200009,1721940637935,-113.34975782,0.00010923,2]
[333200010,1721940637944,-150.0,0.00010925,2]
[333200011,1721940637953,-150.0,0.00010925,2]
[333200012,1721940637962,-150.0,0.0001093,2]
[333200013,1721940637971,-150.0,0.00010933,2]
[333200014,1721940637979,-150.0,0.00010934,2]
[333200015,1721940637987,-150.0,0.00010939,2]
[333200016,1721940637996,-150.0,0.00010939,2]
[333200017,1721940638004,-154.33135057,0.00010942,2]
[333200018,1721940638013,-150.0,0.00010945,2]
[333200019,1721940638022,-150.0,0.00010953,2]
[333200020,1721940638031,-150.0,0.00010953,2]
[333200021,1721940638040,-150.0,0.00010956,2]
[333200022,1721940638049,-500.0,0.00010958,2]
[333200023,1721940638058,-500.0,0.00010958,2]
[333200024,1721940638068,-500.0,0.00010958,2]
[333200025,1721940638077,-500.0,0.00010958,2]
[333200026,1721940638086,-500.0,0.00010958,2]
[333200027,1721940638095,-500.0,0.00010958,2]
[333200028,1721940638104,-500.0,0.00010958,2]
[333200029,1721940638112,-500.0,0.00010958,2]
[333200030,1721940638122,-500.0,0.00010958,2]
[333200031,1721940638130,-337.33073845,0.00010958,2]
[333200032,1721940638143,-162.66926155,0.00010958,2]
[333200033,1721940638151,-500.0,0.00010958,2]
[333200035,1721940638160,-500.0,0.00010958,2]
[333200036,1721940638169,-500.0,0.00010958,2]
[333200037,1721940638178,-500.0,0.00010958,2]
[333200038,1721940638186,-500.0,0.00010958,2]
[333200039,1721940638197,-500.0,0.00010958,2]
[333200040,1721940638206,-500.0,0.00010958,2]
[333200041,1721940638215,-502.71500845,0.00010958,2]
[333200043,1721940638224,-500.0,0.00010958,2]
[333200044,1721940638232,-500.0,0.00010958,2]
[333200046,1721940638241,-500.0,0.00010958,2]
[333200047,1721940638250,-500.0,0.00010958,2]
[333200048,1721940638259,-500.0,0.00010958,2]
[333200049,1721940638267,-500.0,0.00010958,2]
[333200050,1721940638276,-500.0,0.00010958,2]
[333200051,1721940638284,-500.0,0.00010958,2]
[333200052,1721940638293,-500.0,0.00010958,2]
[333200053,1721940638301,-500.0,0.00010958,2]
[333200054,1721940638310,-500.0,0.00010958,2]
[333200055,1721940638318,-500.0,0.00010958,2]
[333200056,1721940638326,-500.0,0.00010958,2]
[333200057,1721940638335,-500.0,0.00010958,2]
[333200058,1721940638344,-500.0,0.00010958,2]
[333200059,1721940638353,-500.0,0.00010958,2]
[333200060,1721940638361,-500.0,0.00010958,2]
[333200061,1721940638370,-500.0,0.00010958,2]
[333200062,1721940638379,-500.0,0.00010958,2]
[333200063,1721940638387,-500.0,0.00010958,2]
[333200064,1721940638397,-500.0,0.00010958,2]
[333200065,1721940638405,-500.0,0.00010958,2]
[333200066,1721940638414,-500.0,0.00010958,2]
[333200067,1721940638423,-500.0,0.00010958,2]
[333200068,1721940638432,-500.0,0.00010958,2]
[333200069,1721940638441,-500.0,0.00010958,2]
[333200070,1721940638449,-500.0,0.00010958,2]
[333200071,1721940638458,-500.0,0.00010958,2]
[333200072,1721940638467,-500.0,0.00010958,2]
[333200073,1721940638476,-500.0,0.00010958,2]
[333200074,1721940638486,-11.88770511,0.00010958,2]
[333200075,1721940638496,-423.96805404,0.00010958,2]
[333200076,1721940638507,-64.14424085,0.00010958,2]
[333200077,1721940638516,-500.0,0.00010958,2]
[333200078,1721940638524,-353.29999279,0.00010958,2]
[333200079,1721940638535,-146.70000721,0.00010958,2]
[333200080,1721940638543,-153.63557756,0.00010958,2]
[333200081,1721940638552,-500.0,0.00010958,2]
[333200082,1721940638561,-500.0,0.00010958,2]
[333200083,1721940638572,-500.0,0.00010958,2]
[333200084,1721940638581,-79.21797464,0.00010959,2]
[333200085,1721940638605,-420.78202536,0.00010959,2]
[333200086,1721940638615,-500.0,0.00010959,2]
[333200087,1721940638625,-250.0,0.00010959,2]
[333200088,1721940638637,-150.0,0.00010965,2]
[333200089,1721940638647,-150.0,0.00010967,2]
[333200090,1721940638658,-150.0,0.00010968,2]
[333200091,1721940638668,-150.0,0.0001097,2]
[333200092,1721940638679,-150.0,0.00010977,2]
[333200093,1721940638689,-150.0,0.00010978,2]
[333200094,1721940638699,-150.0,0.00010978,2]
[333200095,1721940638708,-2.08772521,0.00010981,2]
[333200096,1721940638721,-147.91227479,0.00010981,2]
[333200097,1721940638730,-150.0,0.00010987,2]
[333200098,1721940638740,-459.20626997,0.00010988,2]
[333200099,1721940638749,-500.0,0.00010988,2]
[333200100,1721940638758,-500.0,0.00010988,2]
[333200101,1721940638768,-500.0,0.00010988,2]
[333200102,1721940638778,-131.82187193,0.00010988,2]
[333200103,1721940638797,-368.17812807,0.00010988,2]
[333200104,1721940638807,-500.0,0.00010988,2]
[333200105,1721940638816,-500.0,0.00010988,2]
[333200106,1721940638825,-33.02024552,0.00010988,2]
[333200107,1721940638849,-464.58898707,0.00010988,2]
[333200108,1721940638860,-2.39076741,0.00010988,2]
[333200109,1721940638870,-500.0,0.00010988,2]
[333200110,1721940638879,-136.50313245,0.00010988,2]
[333200111,1721940638895,-363.49686755,0.00010988,2]
[333200112,1721940638904,-500.0,0.00010988,2]
[333200113,1721940638913,-500.0,0.00010989,2]
[333200114,1721940638922,-6074.37,0.00010989,2]
[333200115,1721940638932,-500.0,0.00010989,2]
[333200116,1721940638941,-500.0,0.00010989,2]
[333200117,1721940638950,-500.0,0.00010989,2]
[333200118,1721940638959,-500.0,0.00010989,2]
[333200119,1721940638969,-500.0,0.00010989,2]
[333200120,1721940638978,-500.0,0.00010989,2]
[333200121,1721940638987,-500.0,0.00010989,2]
[333200122,1721940638996,-500.0,0.00010989,2]
[333200123,1721940639006,-500.0,0.00010989,2]
[333200124,1721940639016,-500.0,0.00010989,2]
[333200125,1721940639025,-500.0,0.00010989,2]
[333200126,1721940639034,-500.0,0.00010989,2]
[333200127,1721940639044,-500.0,0.00010989,2]
[333200128,1721940639052,-500.0,0.00010989,2]
[333200129,1721940639061,-18.3947938,0.00010989,2]
[333200134,1721940639930,-1034.34084641,0.00010739,2]
[333200135,1721940639940,-481.6052062,0.00010989,2]
[333200136,1721940639949,-500.0,0.00010989,2]
[333200137,1721940639959,-500.0,0.00010989,2]
[333200138,1721940639968,-500.0,0.00010989,2]
[333200139,1721940639978,-500.0,0.00010989,2]
[333200140,1721940639987,-500.0,0.00010989,2]
[333200141,1721940639997,-500.0,0.00010989,2]
[333200142,1721940640006,-500.0,0.00010989,2]
[333200143,1721940640016,-500.0,0.00010989,2]
[333200144,1721940640025,-500.0,0.00010989,2]
[333200145,1721940640035,-500.0,0.00010989,2]
[333200146,1721940640044,-500.6545172,0.00010989,2]
[333200147,1721940640053,-500.0,0.00010989,2]
[333200148,1721940640062,-500.0,0.00010989,2]
[333200149,1721940640072,-502.02235817,0.00010989,2]
[333200150,1721940640081,-500.0,0.00010989,2]
[333200151,1721940640091,-500.0,0.00010989,2]
[333200152,1721940640100,-500.0,0.00010989,2]
[333200153,1721940640109,-500.0,0.00010989,2]
[333200154,1721940640118,-500.0,0.00010989,2]
[333200155,1721940640127,-500.0,0.00010989,2]
[333200156,1721940640136,-501.50777131,0.00010989,2]
[333200157,1721940640147,-500.0,0.00010989,2]
[333200158,1721940640156,-500.0,0.00010989,2]
[333200159,1721940640165,-504.39429431,0.00010989,2]
[333200160,1721940640174,-500.0,0.00010989,2]
[333200161,1721940640184,-500.0,0.00010989,2]
[333200162,1721940640193,-500.0,0.00010989,2]
[333200163,1721940640202,-500.0,0.00010989,2]
[333200165,1721940640211,-214.13144041,0.00010989,2]
[333200167,1721940640416,-285.86855959,0.00010989,2]
[333200168,1721940640426,-500.0,0.00010989,2]
[333200169,1721940640435,-500.0,0.00010989,2]
[333200170,1721940640445,-500.0,0.00010989,2]
[333200171,1721940640454,-501.3466051,0.00010989,2]
[333200172,1721940640463,-150.0,0.00010989,2]
[333200173,1721940640473,-482.97431417,0.00010989,2]
[333200174,1721940640489,-17.02568583,0.00010989,2]
[333200175,1721940640498,-500.0,0.00010989,2]
[333200176,1721940640508,-500.0,0.00010989,2]
[333200177,1721940640518,-500.0,0.00010989,2]
[333200178,1721940640527,-500.0,0.00010989,2]
[333200179,1721940640536,-500.0,0.00010989,2]
[333200180,1721940640546,-500.0,0.00010989,2]
[333200181,1721940640555,-500.0,0.00010989,2]
[333200182,1721940640564,-500.0,0.00010989,2]
[333200183,1721940640574,-500.0,0.00010989,2]
[333200184,1721940640583,-500.0,0.00010989,2]
[333200185,1721940640592,-500.0,0.00010989,2]
[333200186,1721940640602,-449.56607453,0.00010989,2]
[333200187,1721940640613,-50.43392547,0.00010989,2]
[333200188,1721940640623,-500.0,0.00010989,2]
[333200189,1721940640635,-500.0,0.00010989,2]
[333200190,1721940640647,-500.79432705,0.00010989,2]
[333200191,1721940640656,-500.0,0.00010989,2]
[333200192,1721940640666,-500.0,0.00010989,2]
[333200193,1721940640676,-500.0,0.00010989,2]
[333200194,1721940640685,-500.0,0.00010989,2]
[333200195,1721940640694,-500.0,0.00010989,2]
[333200196,1721940640703,-500.0,0.00010989,2]
[333200197,1721940640713,-500.0,0.00010989,2]
[333200198,1721940640723,-500.0,0.00010989,2]
[333200199,1721940640732,-500.0,0.00010989,2]
[333200200,1721940640742,-500.0,0.00010989,2]
[333200201,1721940640751,-500.0,0.00010989,2]
[333200202,1721940640760,-500.0,0.00010989,2]
[333200203,1721940640769,-500.0,0.00010989,2]
[333200204,1721940640779,-500.0,0.00010989,2]
[333200205,1721940640788,-500.84793812,0.00010989,2]
[333200206,1721940640797,-500.0,0.00010989,2]
[333200207,1721940640807,-500.0,0.00010989,2]
[333200208,1721940640816,-500.0,0.00010989,2]
[333200209,1721940640826,-500.0,0.00010989,2]
[333200210,1721940640835,-77.53280643,0.00010989,2]
[333200211,1721940641102,-422.46719357,0.00010989,2]
[333200212,1721940641112,-392.53280643,0.00010989,2]
[333200213,1721940641124,-230.83719357,0.00010989,2]
[333200214,1721940641133,-501.76975304,0.00010989,2]
[333200215,1721940641143,-500.0,0.00010989,2]
[333200216,1721940641152,-500.0,0.00010989,2]
[333200217,1721940641161,-500.0,0.00010989,2]
[333200218,1721940641170,-500.0,0.00010989,2]
[333200219,1721940641179,-500.0,0.00010989,2]
[333200220,1721940641188,-101.38409578,0.00010989,2]
[333200221,1721940641203,-398.61590422,0.00010989,2]
[333200222,1721940641212,-500.0,0.00010989,2]
[333200223,1721940641222,-500.0,0.00010989,2]
[333200224,1721940641231,-500.0,0.00010989,2]
[333200225,1721940641240,-500.0,0.00010989,2]
[333200226,1721940641249,-500.0,0.00010989,2]
[333200227,1721940641258,-500.0,0.00010989,2]
[333200228,1721940641267,-500.0,0.00010989,2]
[333200229,1721940641276,-500.0,0.00010989,2]
[333200230,1721940641285,-500.0,0.00010989,2]
[333200231,1721940641295,-297.86227133,0.00010989,2]
[333200232,1721940641306,-1.68817097,0.00010989,2]
[333200233,1721940641317,-498.31182903,0.00010989,2]
[333200234,1721940641326,-500.0,0.00010989,2]
[333200235,1721940641335,-500.0,0.00010989,2]
[333200236,1721940641346,-500.0,0.00010989,2]
[333200237,1721940641356,-500.0,0.00010989,2]
[333200238,1721940641366,-437.78765589,0.00010989,2]
[333200239,1721940641377,-62.21234411,0.00010989,2]
[333200240,1721940641386,-354.01280219,0.00010989,2]
[333200241,1721940641400,-145.98719781,0.00010989,2]
[333200242,1721940641409,-500.0,0.00010989,2]
[333200243,1721940641418,-500.0,0.00010989,2]
[333200244,1721940641428,-500.0,0.00010989,2]
[333200245,1721940641438,-501.32,0.00010989,2]
[333200246,1721940641448,-500.0,0.00010989,2]
[333200247,1721940641457,-500.0,0.00010989,2]
[333200248,1721940641467,-500.0,0.00010989,2]
[333200249,1721940641475,-500.0,0.00010989,2]
[333200250,1721940641484,-500.0,0.00010989,2]
[333200251,1721940641494,-500.0,0.00010989,2]
[333200252,1721940641503,-500.0,0.00010989,2]
[333200253,1721940641512,-326.60743979,0.00010989,2]
[333200254,1721940641521,-500.0,0.00010989,2]
[333200255,1721940641530,-500.0,0.00010989,2]
[333200256,1721940641539,-500.0,0.00010989,2]
[333200257,1721940641548,-500.0,0.00010989,2]
[333200258,1721940641557,-500.0,0.00010989,2]
[333200259,1721940641567,-500.0,0.00010989,2]
[333200260,1721940641577,-500.0,0.00010989,2]
[333200261,1721940641586,-500.0,0.00010989,2]
[333200262,1721940641595,-92.11749641,0.00010989,2]
[333200263,1721940641606,-57.88250359,0.00010989,2]
[333200264,1721940641615,-280.90466451,0.00010989,2]
[333200265,1721940641624,-500.0,0.00010989,2]
[333200266,1721940641637,-500.0,0.00010989,2]
[333200267,1721940641649,-500.0,0.00010989,2]
[333200268,1721940641659,-500.0,0.00010989,2]
[333200269,1721940641668,-500.0,0.00010989,2]
[333200270,1721940641678,-500.86243924,0.00010989,2]
[333200271,1721940641688,-115.93692507,0.00010989,2]
[333200272,1721940641699,-384.06307493,0.00010989,2]
[333200273,1721940641710,-263.46347207,0.00010989,2]
[333200274,1721940641721,-236.53652793,0.00010989,2]
[333200275,1721940641730,-500.0,0.00010989,2]
[333200276,1721940641739,-3.16352207,0.00010989,2]
[333200277,1721940641751,-496.83647793,0.00010989,2]
[333200278,1721940641760,-526.61141761,0.00010989,2]
[333200279,1721940641769,-88.63095546,0.00010989,2]
[333200280,1721940641781,-411.36904454,0.00010989,2]
[333200281,1721940641790,-500.0,0.00010989,2]
[333200282,1721940641800,-150.0,0.0001099,2]
[333200283,1721940641809,-211.14,0.0001099,2]
[333200284,1721940641820,-211.14,0.0001099,2]
[333200285,1721940641829,-150.0,0.00010991,2]
[333200286,1721940641839,-154.33135057,0.00010991,2]
[333200287,1721940641848,-494.8090434,0.00010998,2]
[333200288,1721940641858,-500.0,0.00010998,2]
[333200289,1721940641869,-240.8733186,0.00010998,2]
[333200290,1721940641881,-574.0,0.00010999,2]
[333200291,1721940641891,-574.0,0.00010999,2]
[333200292,1721940641900,-574.0,0.00010999,2]
[333200293,1721940641909,-574.0,0.00010999,2]
[333200294,1721940641918,-574.0,0.00010999,2]
[333200295,1721940641928,-375.0,0.00010999,2]
[333200296,1721940641938,-126.45194235,0.00010999,2]
[333200301,1721940642875,-925.21,0.00010979,2]
[333200302,1721940642884,-925.21,0.00010979,2]
[333200303,1721940642894,-925.21,0.00010979,2]
[333200304,1721940642903,-925.21,0.00010979,2]
[333200305,1721940642913,-925.21,0.00010979,2]
[333200306,1721940642922,-925.21,0.00010979,2]
[333200307,1721940642932,-447.54805765,0.00010999,2]
[333200308,1721940642941,-574.0,0.00010999,2]
[333200309,1721940642951,-574.0,0.00010999,2]
[333200310,1721940642961,-574.0,0.00010999,2]
[333200311,1721940642970,-574.0,0.00010999,2]
[333200312,1721940642979,-500.0,0.00010999,2]
[333200313,1721940642988,-500.0,0.00010999,2]
[333200314,1721940642997,-500.0,0.00010999,2]
[333200315,1721940643006,-443.24,0.00010999,2]
[333200316,1721940643015,-500.0,0.00010999,2]
[333200317,1721940643024,-500.0,0.00010999,2]
[333200318,1721940643034,-500.0,0.00010999,2]
[333200319,1721940643043,-500.0,0.00010999,2]
[333200320,1721940643052,-500.0,0.00010999,2]
[333200321,1721940643061,-500.0,0.00010999,2]
[333200322,1721940643072,-589.38,0.00010999,2]
[333200323,1721940643081,-500.0,0.00010999,2]
[333200324,1721940643090,-500.0,0.00010999,2]
[333200325,1721940643099,-536.1093923,0.00010999,2]
[333200326,1721940643109,-500.0,0.00010999,2]
[333200327,1721940643118,-236.23306293,0.00010999,2]
[333200328,1721940643127,-155.0792198,0.00010999,2]
[333200329,1721940643137,-770.0,0.00011,2]
[333200330,1721940643150,-18359.47984742,0.00011,2]
[333200331,1721940643162,-50436.83814242,0.00011,2]
[333200332,1721940643178,-36512.47496338,0.00011,2]
[333200333,1721940643190,-1564.97247998,0.00011,2]
[333200334,1721940643202,-20218.36618208,0.00011,2]